[Event "Israeli Championship 2022"]
[Site "Yosiah Arad"]
[Date "2022.12.08"]
[Round "4.13"]
[White "Ben-Menachem, Itzhak"]
[Black "Iliaguev, Nisim"]
[Result "0-1"]
[ECO "A35"]
[WhiteElo "2291"]
[BlackElo "2364"]
[Annotator "TA"]
[PlyCount "192"]
[EventDate "2022.12.05"]
[EventType "swiss"]
[EventCountry "ISR"]
[SourceTitle "playchess.com"]
[Source "ChessBase"]
[SourceQuality "1"]
[TimeControl "40/5400+30:1800+30"]

{[%evp 15,192,0,22,2,19,5,13,2,14,10,17,-4,20,20,37,18,21,17,55,55,47,36,80,41,55,64,49,60,64,56,56,38,61,64,88,91,111,92,105,93,158,131,125,37,38,24,20,29,16,18,25,30,37,6,13,-12,-6,-17,-15,-24,-2,-103,-107,-130,-130,-130,-132,-129,-87,-87,-87,-87,-87,-87,-87,-181,-87,-87,-87,-87,-87,-87,-87,-87,-87,-87,-87,-87,-87,-87,-87,-87,-87,-87,0,-87,-87,-87,-87,-87,-72,-87,-72,-72,-41,-72,-72,-72,-41,-72,-56,-87,-72,-87,-41,-72,-72,-87,-72,-87,-87,-87,-72,-87,-72,-87,-87,-87,-73,-87,-72,-72,-72,-72,-72,-72,-72,-72,-72,-72,-8,-8,-8,-8,-8,-8,-8,-8,0,-8,-8,-8,-8,-8,-8,-8,-8,-72,-72,-72,-73,-73,0,-8,-8,-8,-8,-8,-8,-8,-8,-29976,-29977,-29978,-29978,-29984,-29985,-29985,-29986]} 1. d4 {[%emt 1:31:00]} Nf6 {[%emt 0:00:08]} 2. c4 {[%emt 0:00:00]} c5 {[%emt 0:00:05]} 3. e3 {[%emt 0:00:00]} g6 {[%emt 0:01:44]} 4. Nf3 {[%emt 0:00:00]} Bg7 {[%emt 0:00:05]} 5. Nc3 {[%emt 0:00:00]} O-O {[%emt 0:00:50]} 6. Be2 {[%emt 0:00:00]} cxd4 {[%emt 0:01:42]} 7. Nxd4 {[%emt 0:00:00]} Nc6 {[%emt 0:00:32]} 8. O-O {[%emt 0:00:00]} d6 {[%emt 0:00:39] 8...d5 injects fresh life into this line.} 9. h3 {[%emt 0:00:00] A35: Symmetrical English: 2 Nc3 Nc6 3 Nf3.} Bd7 {[%emt 0:01:30]} 10. b3 {[%emt 0:00:00]} Rc8 {[%emt 0:00:59]} 11. Bb2 {[%emt 0:00:00] The position is equal.} a6 {[%emt 0:05:10]} 12. Qd2 {[%emt 0:00:00]} Qa5 {[%emt 0:06:10]} 13. Rfd1 {[%emt 0:00:00]} Rfd8 {[%emt 0:06:04] [#]} 14. Nf3 $146 {[%emt 0:00:00]} ({Predecessor:} 14. Bf3 Nxd4 15. Qxd4 Ne8 16. Qd2 Bc6 17. Bxc6 bxc6 18. e4 e5 19. Qe3 Qc7 20. Rd3 {1-0 (50) Lukasik,A (1968)-Sliwicki,D (2045) Szczyrk 2014}) 14... Be8 {[%emt 0:07:13]} 15. Rac1 {[%emt 0:00:00]} e6 {[%emt 0:04:35]} 16. a3 {[%emt 0:00:00]} Qb6 {[%emt 0:05:34]} 17. b4 {[%emt 0:00:00] Inhibits Na5.} Ne7 {[%emt 0:01:07]} 18. Qc2 {[%emt 0:00:00]} a5 {[%emt 0:05:25]} 19. Qb3 {[%emt 0:00:00]} axb4 {[%emt 0:02:50]} 20. axb4 {[%emt 0:00:00]} ({But not} 20. Qxb4 Qxb4 21. axb4 d5 $11) 20... d5 {[%emt 0:04:22]} 21. Nd2 {[%emt 0:00:00]} Nf5 {[%emt 0:11:41]} 22. c5 {[%emt 0:00:21]} Qc7 {[%emt 0:00:41]} 23. Nb5 {[%emt 0:00:52] Prevents d4.} Bxb5 {[%emt 0:02:49]} 24. Bxb5 {[%emt 0:00:01]} h5 {[%emt 0:04:50]} 25. Nf3 {[%emt 0:01:16]} Ne8 {[%emt 0:04:09]} 26. Bxg7 {[%emt 0:00:56]} Nexg7 {[%emt 0:00:27]} 27. Qb2 {[%emt 0:00:26]} b6 {[%emt 0:03:15]} (27... Qe7 $142) 28. Bd3 {[%emt 0:04:58]} bxc5 {[%emt 0:02:21]} 29. bxc5 {[%emt 0:00:01]} (29. Rxc5 $16 Qb7 30. Rcc1) 29... Ne7 $14 {[%emt 0:04:03]} 30. Ne5 {[%emt 0:01:54]} Nc6 {[%emt 0:03:53]} 31. Nxc6 {[%emt 0:00:21]} Qxc6 {[%emt 0:00:02]} 32. Qf6 {[%emt 0:00:47]} Ne8 {[%emt 0:02:31]} 33. Qg5 {[%emt 0:00:25]} Kg7 {[%emt 0:02:53]} 34. Rc2 {[%emt 0:00:05]} Nf6 {[%emt 0:01:11]} 35. Rb1 {[%emt 0:01:24]} (35. Qe5 {simplifies} Qc7 36. Qb2 Rb8 37. Qa1) 35... d4 {[%emt 0:01:26]} 36. exd4 {[%emt 0:01:53]} (36. Qf4 {simplifies} Qc7 37. Rc4 Qxf4 38. exf4 Nd5 39. Rxd4 Rxc5 40. Be4) 36... Rxd4 {[%emt 0:00:22]} 37. Bb5 {[%emt 0:00:43]} Qe4 $36 {[%emt 0:02:17][%mdl 2048] Black fights for an advantage.} (37... Qd5 {simplifies} 38. Qxd5 Nxd5 39. Ba6 Rc7) 38. Rbc1 {[%emt 0:00:26]} (38. Qc1 $1 $11) 38... Rd5 $1 $17 {[%emt 0:00:31]} 39. Qe3 {[%emt 0:01:01]} Qxe3 {[%emt 0:01:56]} 40. fxe3 {[%emt 0:00:01]} Ne4 {[%emt 0:00:16]} 41. Be2 {[%emt 0:02:38]} Rdxc5 {[%emt 0:04:10] Black is more active.} 42. Rxc5 {[%emt 0:00:25]} Rxc5 {[%emt 0:00:01]} 43. Rxc5 {[%emt 0:00:01]} Nxc5 {[%emt 0:00:01][%mdl 4096] Endgame KB-KN} 44. h4 {[%emt 0:00:17]} Ne4 {[%emt 0:02:30]} 45. Bf3 {[%emt 0:01:25]} (45. Bd3 $17 f5 46. Bb5) 45... Ng3 {[%emt 0:00:59]} (45... f5 $1 $19 {and Black stays clearly on top.} 46. Be2 Kf7) 46. Kf2 {[%emt 0:01:48]} Nf5 {[%emt 0:00:02]} 47. g3 {[%emt 0:00:01]} Kf6 {[%emt 0:00:13]} 48. Bd1 {[%emt 0:00:29]} Ke5 {[%emt 0:00:12]} 49. Kf3 {[%emt 0:00:25]} Nd6 {[%emt 0:03:49]} 50. Bb3 {[%emt 0:01:51]} Ne4 {[%emt 0:00:27] aiming for ...Nd2+.} 51. Ba4 {[%emt 0:00:53]} Nd2+ {[%emt 0:00:08]} 52. Ke2 {[%emt 0:00:15]} Nc4 {[%emt 0:00:01]} 53. Bb3 {[%emt 0:01:42]} Na5 {[%emt 0:00:47]} 54. Ba4 {[%emt 0:00:23]} Nc4 {[%emt 0:01:08]} 55. Bb3 $1 {[%emt 0:00:23]} Nb6 {[%emt 0:00:33]} 56. Kf3 {[%emt 0:00:15]} Nd5 {[%emt 0:00:59]} 57. Ba4 {[%emt 0:00:19]} Kf6 {[%emt 0:02:10]} 58. Be8 {[%emt 0:07:34]} e5 {[%emt 0:01:31]} 59. Bc6 {[%emt 0:03:28]} Nc7 {[%emt 0:00:59]} 60. Ba4 {[%emt 0:00:38]} Ne6 {[%emt 0:00:09]} 61. Bc6 {[%emt 0:00:30]} Nc5 {[%emt 0:00:11]} 62. Bd5 {[%emt 0:00:14]} Ke7 {[%emt 0:01:17]} 63. Bc4 {[%emt 0:04:07]} f6 {[%emt 0:01:39]} 64. Ba2 {[%emt 0:01:25]} Kf8 {[%emt 0:02:44]} ({Better is} 64... f5 $17) 65. Bb1 {[%emt 0:01:00]} Kg7 {[%emt 0:00:41]} 66. Bc2 {[%emt 0:00:16]} Nb7 {[%emt 0:01:13]} 67. Ke4 {[%emt 0:02:02]} Nd6+ $1 {[%emt 0:00:55]} 68. Kd5 {[%emt 0:00:25]} Nf7 {[%emt 0:00:06]} 69. Ke4 {[%emt 0:00:41]} Nh6 {[%emt 0:01:51]} 70. Ba4 {[%emt 0:01:23]} Nf5 {[%emt 0:00:41]} 71. Kf3 {[%emt 0:00:06]} Nd6 {[%emt 0:00:32]} 72. Bb3 {[%emt 0:01:32]} Kh6 {[%emt 0:00:24]} 73. Bd5 {[%emt 0:01:23]} g5 {[%emt 0:01:21] And now ...gxh4 would win.} 74. hxg5+ {[%emt 0:00:07]} fxg5 {[%emt 0:00:32]} 75. Be6 {[%emt 0:03:38]} g4+ {[%emt 0:00:39]} 76. Kf2 {[%emt 0:00:33]} Kg5 {[%emt 0:00:09]} 77. Kg2 {[%emt 0:00:23]} h4 {[%emt 0:03:38]} ({Black should play} 77... Nb7 $17) 78. gxh4+ $11 {[%emt 0:00:01]} Kxh4 {[%emt 0:00:01]} 79. Kh2 $1 {[%emt 0:00:09]} Ne4 {[%emt 0:00:30]} 80. Kg2 {[%emt 0:00:24] Against Nf2} Nc3 {[%emt 0:01:26]} 81. Bb3 $1 {[%emt 0:00:23] Inhibits Nd1.} Ne4 {[%emt 0:04:01]} 82. Bd5 {[%emt 0:00:26]} Nd6 {[%emt 0:00:08]} 83. Be6 $1 {[%emt 0:00:04] Inhibits Nf5.} Kg5 {[%emt 0:01:19]} 84. Kg3 $1 {[%emt 0:00:49]} Ne4+ {[%emt 0:00:52]} 85. Kg2 {[%emt 0:00:06]} Nc5 {[%emt 0:00:01]} 86. Bc8 {[%emt 0:00:58]} (86. Bg8 $1 $11 {was the only way to keep the balance.}) 86... Kh4 $1 $17 {[%emt 0:01:03]} 87. Bf5 {[%emt 0:00:26]} Na4 $1 {[%emt 0:00:04]} 88. Be6 {[%emt 0:00:31]} Nc3 {[%emt 0:00:06]} (88... Nb2 $1 $17 {[%cal Rb2d1] ( -> ...Nd1)} 89. Bb3 Nd3) 89. Bb3 $1 $11 {[%emt 0:00:10]} g3 {[%emt 0:00:20]} 90. Be6 {[%emt 0:00:54]} Nd1 {[%emt 0:00:26][%cal Oe5e4]} 91. e4 {[%emt 0:01:36]} Ne3+ {[%emt 0:02:01]} 92. Kf3 {[%emt 0:00:18]} Nc2 {[%emt 0:00:20]} (92... g2 $5 93. Kf2 $8 Kg5 $1 $11) 93. Kg2 $2 {[%emt 0:01:13][%mdl 8192] [#] Now White is beyond hope.} (93. Bf5 $11 Nb4 94. Bd7) 93... Ne1+ $1 {[%emt 0:00:37] Black mates.} ({And not} 93... Ne3+ 94. Kf3 Nf1 95. Bf5 Nh2+ 96. Kg2 $11) 94. Kf1 {[%emt 0:00:36]} Nd3 {[%emt 0:00:08]} 95. Bc4 {[%emt 0:01:25]} Nf4 {[%emt 0:00:46]} 96. Kg1 {[%emt 0:00:15]} Kg4 {[%emt 0:00:11] Weighted Error Value: White=0.14 (very precise) /Black=0.13 (very precise)} 0-1

[Event "Israeli Championship 2022"]
[Site "Yosiah Arad"]
[Date "2022.12.08"]
[Round "4.14"]
[White "Uritsky, Yonathan"]
[Black "Kupervaser, Erez"]
[Result "1/2-1/2"]
[ECO "B60"]
[WhiteElo "2216"]
[BlackElo "2331"]
[Annotator "TA"]
[PlyCount "111"]
[EventDate "2022.12.05"]
[EventType "swiss"]
[EventCountry "ISR"]
[SourceTitle "playchess.com"]
[Source "ChessBase"]
[SourceQuality "1"]
[TimeControl "40/5400+30:1800+30"]

{[%evp 14,111,52,43,44,25,46,46,40,0,14,-40,-13,-10,-10,-26,-13,-9,0,-11,-8,0,0,-2,0,0,0,0,0,-9,0,0,0,-4,-4,-11,-10,-15,-16,-17,-14,-41,-41,-52,-67,-87,-75,-77,-77,-104,-96,-78,-14,-14,0,0,0,0,0,0,0,0,0,0,0,0,0,0,0,0,0,0,0,0,0,0,0,0,0,0,0,-89,0,0,0,0,0,0,0,0,0,0,0,0,0,0,0,0,0,0]} 1. e4 {[%emt 0:00:05]} c5 {[%emt 0:00:05]} 2. Nf3 {[%emt 0:00:10][%cal Bg1f3,Bf3d4,Bd4b5][%mdl 32]} Nc6 {[%emt 0:00:04]} 3. d4 {[%emt 0:00:06]} cxd4 {[%emt 0:00:03]} 4. Nxd4 {[%emt 0:00:07]} Nf6 {[%emt 0:00:04]} 5. Nc3 {[%emt 0:00:08]} d6 {[%emt 0:00:09]} 6. Bg5 {[%emt 0:01:00]} g6 {[%emt 0:00:09]} 7. Bxf6 {[%emt 0:04:24]} exf6 {[%emt 0:00:37]} 8. Bc4 {[%emt 0:03:48]} (8. Bb5 $5 {[%cal Rd4c6]} Bd7 9. Qd3 $14) 8... Bg7 {[%emt 0:00:06] B60: Sicilian: Richter-Rauzer: Unusual Black 6th moves and 6...Bd7 without 7 Qd2.} 9. Ndb5 {[%emt 1:25:12] Pair of Knights!} O-O {[%emt 0:00:07]} 10. Qxd6 {[%emt 0:00:00]} (10. Qd2 {simplifies} a6 11. Nxd6 Qc7 12. Nxc8 Raxc8 13. O-O) 10... f5 {[%emt 0:00:51] [#] White is slightly better.} 11. Rd1 $146 {[%emt 0:00:00]} ({Predecessor:} 11. O-O-O Qg5+ 12. f4 Qxg2 13. e5 Bh6 14. Rhf1 Qxh2 15. Nd5 Be6 16. Nf6+ Kh8 17. Bxe6 fxe6 {0-1 (34) Solodovnichenko,Y (2521)-Edouard,R (2548) Cap d'Agde 2022}) 11... Qa5 {[%emt 0:03:50]} 12. Qa3 {[%emt 0:00:00]} (12. Qg3 $11) 12... Qxa3 {[%emt 0:08:59]} (12... a6 {is more complex.} 13. Qxa5 Nxa5 14. Nd6 Nxc4 15. Nxc4 Be6) 13. Nxa3 {[%emt 0:00:00]} fxe4 {[%emt 0:00:20]} 14. O-O {[%emt 0:00:00]} Bf5 {[%emt 0:08:19]} 15. Bd5 {[%emt 0:00:00]} Rac8 {[%emt 0:07:36]} 16. Nab5 {[%emt 0:00:00]} Rfd8 {[%emt 0:11:41] Inhibits Nd6.} 17. Bxe4 {[%emt 0:00:00]} Bxe4 {[%emt 0:01:59]} 18. Nxe4 {[%emt 0:00:00]} Bxb2 {[%emt 0:02:35]} 19. c3 {[%emt 0:00:00] Prevents Nd4.} Rxd1 {[%emt 0:05:41]} 20. Rxd1 {[%emt 0:00:00]} f5 {[%emt 0:00:28]} 21. Nc5 {[%emt 0:00:00] [#] Na4 is the strong threat.} a6 {[%emt 0:13:40]} 22. Nd6 {[%emt 0:00:00]} Rc7 {[%emt 0:00:51]} 23. Ndxb7 {[%emt 0:00:00]} Bxc3 {[%emt 0:01:13]} 24. Nd8 {[%emt 0:00:00]} Nd4 {[%emt 0:04:27]} 25. Nde6 {[%emt 0:00:00]} Nxe6 {[%emt 0:01:03]} 26. Nxe6 $11 {[%emt 0:00:00][%mdl 4096] Endgame KRB-KRN} Rc6 {[%emt 0:00:26]} 27. Nf4 {[%emt 0:00:00] [#]} Bd2 $1 {[%emt 0:03:35]} 28. Nd5 {[%emt 0:00:00] Black must now prevent Ne7+.} (28. Nd3 Rc2) 28... Rc2 {[%emt 0:01:39]} 29. a4 {[%emt 0:00:00]} Kf7 {[%emt 0:04:05]} 30. Kf1 {[%emt 0:00:00]} a5 {[%emt 0:01:05]} 31. Ke2 {[%emt 0:00:00]} Bb4+ {[%emt 0:01:15]} 32. Kf3 {[%emt 0:00:00]} Bc5 {[%emt 0:01:25]} (32... Ra2 $17) 33. Ne3 {[%emt 0:00:00]} Ra2 {[%emt 0:01:18]} (33... Bxe3 {simplifies} 34. Kxe3 Ke6 35. Rd4 Ra2) 34. Rd7+ {[%emt 0:00:00]} Ke6 {[%emt 0:01:55]} 35. Rxh7 {[%emt 0:00:00]} Rxa4 {[%emt 0:00:08]} 36. Rg7 {[%emt 0:00:00] Against g5} Kf6 {[%emt 0:01:18]} 37. Rc7 {[%emt 0:00:00]} Bd4 {[%emt 0:02:37]} 38. Rc6+ {[%emt 0:00:00]} Kg7 {[%emt 0:02:21]} 39. Rc7+ {[%emt 0:00:00]} Kf6 {[%emt 0:00:23]} 40. Rc6+ {[%emt 0:00:00]} Kg7 {[%emt 0:00:06]} 41. Rc7+ {[%emt 0:30:27]} Kh6 {[%emt 0:31:27]} 42. Rc6 {[%emt 0:00:44]} Kh5 {[%emt 0:07:00]} 43. h3 {[%emt 0:01:30]} Ra3 {[%emt 0:00:00]} ({Better is} 43... Bxe3 $11 44. Kxe3 Ra3+ 45. Kd4 Ra2) 44. g4+ $17 {[%emt 0:00:00]} fxg4+ {[%emt 0:00:00]} 45. hxg4+ {[%emt 0:00:00]} Kg5 {[%emt 0:00:00]} 46. Ke4 {[%emt 0:00:00]} Bxe3 {[%emt 0:00:00]} 47. fxe3 $11 {[%emt 0:00:00] KR-KR} Ra4+ {[%emt 0:00:00]} ({Don't play} 47... Kxg4 $6 48. Rxg6+ Kh5 49. Rg7 $11) (47... Ra1 $17) 48. Kf3 {[%emt 0:00:00] The position is equal.} Rxg4 {[%emt 0:00:00]} 49. Rc5+ {[%emt 0:00:00]} Kh4 {[%emt 0:00:00]} 50. Rxa5 {[%emt 0:00:00]} Rg3+ {[%emt 0:00:00]} 51. Kf2 {[%emt 0:00:00]} g5 {[%emt 0:00:00]} 52. Ra8 {[%emt 0:00:00]} Kg4 {[%emt 0:00:00]} 53. Re8 {[%emt 0:00:00]} Rf3+ {[%emt 0:00:00]} 54. Kg2 {[%emt 0:00:00] Re4+ would kill now.} Rg3+ {[%emt 0:00:00]} 55. Kf2 {[%emt 0:00:00]} Rf3+ {[%emt 0:00:00]} 56. Kg2 $1 {[%emt 0:00:00] Weighted Error Value: White=0.07 (flawless) /Black=0.06 (flawless)} 1/2-1/2

[Event "Israeli Championship 2022"]
[Site "Yosiah Arad"]
[Date "2022.12.08"]
[Round "4.15"]
[White "Shimshovich, Asaf"]
[Black "Sitbon, Itay"]
[Result "0-1"]
[ECO "D00"]
[WhiteElo "1941"]
[BlackElo "2092"]
[Annotator "TA"]
[PlyCount "54"]
[EventDate "2022.12.05"]
[EventType "swiss"]
[EventCountry "ISR"]
[SourceTitle "playchess.com"]
[Source "ChessBase"]
[SourceQuality "1"]
[TimeControl "40/5400+30:1800+30"]

{[%evp 9,54,-6,54,16,51,-23,-14,-57,-31,-52,-20,-92,-77,-77,-77,-135,-124,-134,-129,-108,-91,-181,-179,-205,-202,-223,-213,-258,-226,-248,-242,-411,-383,-456,-443,-453,-457,-420,-412,-381,-315,-476,-439,-614,-631,-684,-691]} 1. d4 {[%emt 0:00:08]} Nf6 {[%emt 0:00:06]} 2. Bf4 {[%emt 0:00:05]} d5 {[%emt 0:00:23]} 3. Nc3 {[%emt 0:00:13]} a6 {[%emt 0:02:19]} 4. e3 {[%emt 0:02:05]} c5 {[%emt 0:06:31]} 5. Nf3 {[%emt 0:03:15] [#]} Nh5 $146 {[%emt 0:08:39]} (5... e6 $11) ({Predecessor:} 5... cxd4 6. exd4 Bg4 7. Be2 Nc6 8. Ne5 Bxe2 9. Nxe2 e6 10. c3 Be7 11. h4 h5 {0-1 (31) Vachier Lagrave,M (2749)-Karjakin,S (2757) Krasnaya Polyana 2021}) 6. Be5 {[%emt 0:23:53] D00: 1 d4 d5: Unusual lines.} Nc6 {[%emt 1:15:32]} 7. h3 {[%emt 0:00:45]} (7. dxc5 f6 8. Nd4) (7. dxc5 $14 f6 8. Nd4) 7... e6 $11 {[%emt 0:00:00]} 8. g4 {[%emt 0:01:50] The position is equal.} Nf6 {[%emt 0:00:00]} 9. Bg2 {[%emt 0:05:30]} Be7 {[%emt 0:00:00]} 10. g5 {[%emt 0:11:57]} (10. Bg3) (10. Bg3 $11 {keeps the balance.}) 10... Nxe5 $17 {[%emt 0:00:00]} 11. Nxe5 {[%emt 0:00:18]} Nd7 {[%emt 0:00:00]} 12. Nxd7 {[%emt 0:04:41]} ({Better is} 12. h4) 12... Bxd7 {[%emt 0:00:00]} 13. h4 {[%emt 0:00:24]} Qb6 {[%emt 0:00:00]} 14. Qd2 {[%emt 0:03:55]} cxd4 {[%emt 0:00:00]} 15. exd4 {[%emt 0:01:04]} (15. Qxd4 $17 Qxd4 16. exd4) 15... Qxb2 $19 {[%emt 0:00:00]} 16. Rb1 {[%emt 0:03:49]} Qa3 {[%emt 0:00:00]} 17. Nd1 {[%emt 0:06:47]} b5 {[%emt 0:00:00]} 18. Rb2 {[%emt 0:00:44]} Rc8 {[%emt 0:00:00]} 19. O-O {[%emt 0:04:49]} h6 {[%emt 0:00:00]} 20. g6 $2 {[%emt 0:04:16] [#]} (20. c3) 20... fxg6 {[%emt 0:00:00]} 21. Rb3 {[%emt 0:02:13]} Qxa2 {[%emt 0:00:00]} 22. Ne3 {[%emt 0:03:11]} O-O {[%emt 0:00:00]} (22... Bxh4 $2 23. Qd3 $19) 23. Qd3 {[%emt 0:01:46]} Be8 {[%emt 0:00:00]} (23... Bxh4 $2 {perishes.} 24. Ra3 Qb2 25. Rb3 Bxf2+ 26. Kh1 $17) 24. Bh3 {[%emt 0:01:27]} Rc6 {[%emt 0:00:00]} ({Worse is} 24... Bxh4 25. Bxe6+ Bf7 26. Bxc8 (26. Ra3 Qb2 $11) 26... Rxc8 27. Ra3 $11) 25. Qe2 {[%emt 0:05:29]} (25. Rc3 {was called for.} Rb6 26. Ng4) 25... Bf7 {[%emt 0:00:00] Black is clearly winning.} 26. Qg4 {[%emt 0:02:45]} Rxc2 {[%emt 0:00:00]} 27. Nxc2 {[%emt 0:00:15]} Qxb3 {[%emt 0:00:00] Weighted Error Value: White=0.56/Black=0.16 (very precise)} 0-1

[Event "Israeli Championship 2022"]
[Site "Yosiah Arad"]
[Date "2022.12.09"]
[Round "5.1"]
[White "Boruchovsky, Avital"]
[Black "Gorshtein, Ido"]
[Result "1/2-1/2"]
[ECO "B12"]
[WhiteElo "2552"]
[BlackElo "2469"]
[Annotator "TA"]
[PlyCount "56"]
[EventDate "2022.12.05"]
[EventType "swiss"]
[EventCountry "ISR"]
[SourceTitle "playchess.com"]
[Source "ChessBase"]
[SourceQuality "1"]
[TimeControl "40/5400+30:1800+30"]

{[%evp 9,56,19,12,18,48,39,63,9,31,-4,-13,-37,-35,-33,-30,-45,-17,-58,-59,-49,0,0,32,11,37,47,90,88,76,133,101,129,389,358,385,377,358,366,448,475,481,212,376,384,437,0,270,0,355]} 1. e4 {[%emt 0:00:18]} c6 {[%emt 0:00:06]} 2. d4 {[%emt 0:00:04]} d5 {[%emt 0:00:02]} 3. e5 {[%emt 0:00:07]} Bf5 {[%emt 0:00:04]} 4. h4 {[%emt 0:00:05]} a6 {[%emt 0:01:31]} 5. g4 {[%emt 0:07:26]} Bd7 {[%emt 0:00:13][%cal Oc6c5]} 6. c4 {[%emt 0:00:18][%cal Bc2c4,Bc4c5][%mdl 32] [#] Inhibits c5. B12: Caro-Kann: Advance Variation.} h5 $146 {[%emt 0:07:16]} ({Predecessor:} 6... Qc8 7. cxd5 cxd5 8. Be2 Nc6 9. Nc3 e6 10. Be3 h5 11. gxh5 Nh6 12. Bd3 Nb4 13. Bb1 Qc7 14. Nge2 Nc6 15. Bd3 Nb4 16. Bb1 Nc6 17. Bd3 Nb4 {½-½ (17) Sarkar,J (2352)-Mirzoev,A (2435) Prague 2022}) 7. g5 {[%emt 0:01:25][%cal Og5g6]} Bf5 {[%emt 0:02:11] Inhibits g6.} 8. Nc3 {[%emt 0:10:49]} (8. Bh3 $14 Be4 9. f3 Bxb1 10. Rxb1) 8... e6 $11 {[%emt 0:02:02]} 9. c5 {[%emt 0:03:20]} b6 {[%emt 0:11:00]} 10. b4 {[%emt 0:08:51][%cal Bb2b4,Bb4b5,Bb5b6][%mdl 32]} a5 {[%emt 0:02:54]} 11. Na4 {[%emt 0:01:03]} Nd7 {[%emt 0:00:55]} 12. b5 {[%emt 0:05:56]} Ne7 {[%emt 0:01:10]} (12... bxc5 {with more complications.} 13. bxc6 Nb6 14. Bb5 Qc7) 13. Be3 {[%emt 0:09:15]} (13. Ba3 {feels hotter.} bxc5 14. Nxc5 Ng6 15. Nb7) 13... bxc5 {[%emt 0:04:31]} 14. Nxc5 {[%emt 0:00:05] [#] Threatens to win with Nb7.} Nxc5 {[%emt 0:00:08]} (14... Ng6 $1 $15) 15. dxc5 {[%emt 0:00:04]} Ng6 {[%emt 0:01:04]} 16. Bd4 {[%emt 0:10:27]} Be7 {[%emt 0:00:34]} 17. b6 {[%emt 0:01:42]} f6 {[%emt 0:11:41]} 18. exf6 {[%emt 0:11:49]} gxf6 {[%emt 0:00:03]} 19. Bd3 {[%emt 0:00:17] Prevents e5.} Bxd3 {[%emt 0:06:06]} 20. Qxd3 {[%emt 0:00:02]} Rg8 {[%emt 0:00:58][%mdl 8192]} (20... Nf4 $16 21. Qc2 e5) 21. Nf3 $18 {[%emt 0:02:08]} e5 {[%emt 0:09:22]} 22. gxf6 {[%emt 0:00:05]} Bxf6 {[%emt 0:00:07] [#]} 23. Qf5 $1 {[%emt 0:03:39]} exd4 {[%emt 0:03:14]} (23... Qe7 24. O-O-O) 24. Kf1 {[%emt 0:01:29] Strongly threatening Re1+.} Be7 {[%emt 0:10:17]} (24... Nxh4 $2 25. Re1+ Kf8 26. Rxh4) 25. Qe6 {[%emt 0:01:10]} (25. Ng5 $142 {Hoping for Qf7+.} Bxg5 26. hxg5) 25... Kf8 {[%emt 0:01:02]} (25... Rg7) 26. Qf5+ {[%emt 0:02:27]} (26. Qxc6 Rc8 27. Qe6 Rxc5 $11) (26. Rg1 Qc8 27. Rxg6 Rxg6 28. Qxg6 Qh3+ 29. Ke2 d3+ 30. Qxd3 (30. Kxd3 $2 Qxf3+ 31. Kd2 Qxf2+ 32. Kd3 Qf3+ 33. Kd2 Qf4+ 34. Kd1 Qd4+ 35. Kc2 Qxc5+ 36. Kd1 Qd4+ 37. Ke2 Qe5+ 38. Kf3 Qxa1 $19) (30. Ke3 Bxc5+ 31. Kf4 Qg4+ 32. Qxg4 hxg4 $11) 30... Bxc5 $14) 26... Ke8 {[%emt 0:03:01]} 27. Qe6 {[%emt 0:00:24]} Kf8 {[%emt 0:00:07][%csl LRc5,LRh4] aiming for ...Qc8.} (27... Rg7 $2 28. Qxc6+ Kf7 29. Nxd4 $18 (29. Re1 Kg8 $18)) 28. Qf5+ {[%emt 0:00:21]} ({Weaker is} 28. Qxc6 Rc8 29. Qe6 Rxc5 $11) (28. Rg1 Qc8 29. Rxg6 Rxg6 30. Qxg6 Qh3+ 31. Ke2 d3+ 32. Qxd3 (32. Kxd3 Qxf3+ 33. Kd2 Qxf2+ 34. Kd1 Qd4+ 35. Kc2 Qxc5+ 36. Kd2 Qf2+ 37. Kd1 Qf3+ 38. Kc1 Ba3+ 39. Kd2 Bb4+ 40. Kc1 Qc3+ 41. Kb1 Qe1+ 42. Kc2 Qxa1 43. Qf5+ Ke7 44. b7 Qxa2+ 45. Kc1 Ba3+ 46. Kd1 Qa1+ 47. Kd2 Bb4+ 48. Kc2 Qa2+ 49. Kc1 Ba3+ 50. Kd1 Qa1+ 51. Ke2 Qb2+ 52. Kd1 Rf8 53. b8=Q Qxb8 54. Qd3 Qb4 55. Qe3+ Kd7 56. Qh3+ Kd8 57. Qe3 Qb2 58. Qg5+ Kd7 59. Qd2 Qb1+ 60. Ke2 Qf1+ 61. Ke3 Re8+ 62. Kd4 Qc4#) (32. Ke3 Bxc5+ 33. Kf4 Qg4+ 34. Qxg4 Bd6+ 35. Kf5 hxg4 $11) 32... Bxc5 $11) 28... Ke8 $1 {[%emt 0:00:08][%mdl 32768] Weighted Error Value: White=0.47/Black=0.39. An unexpected result.} 1/2-1/2